[Event "*** Titled Tuesday Blitz"]
[Site "Chess.com"]
[Date "2018.08.07"]
[Round "3"]
[White "INDIAN-ELEPHANT"]
[Black "misha_melnichuk"]
[Result "1-0"]
[WhiteElo "2722"]
[BlackElo "2612"]
[TimeControl "180+2"]
[EndTime "13:34:05 PDT"]
[Termination "INDIAN-ELEPHANT won by resignation"]

1. d4 {[%clk 0:03:01.9]} 1... Nf6 {[%clk 0:02:59.7]} 2. c4 {[%clk 0:02:59.8]}
2... e6 {[%clk 0:03:00.4]} 3. Nf3 {[%clk 0:03:00]} 3... Bb4+ {[%clk 0:03:01.5]}
4. Bd2 {[%clk 0:03:00.7]} 4... Qe7 {[%clk 0:03:02.2]} 5. g3 {[%clk 0:03:01.3]}
5... Nc6 {[%clk 0:03:03.5]} 6. Nc3 {[%clk 0:03:01.7]} 6... Bxc3 {[%clk
0:03:04.1]} 7. Bxc3 {[%clk 0:03:02.6]} 7... Ne4 {[%clk 0:03:05.7]} 8. Rc1 {[%clk
0:03:02.8]} 8... Nxc3 {[%clk 0:03:06.6]} 9. Rxc3 {[%clk 0:03:03.3]} 9... O-O
{[%clk 0:03:08.5]} 10. Bg2 {[%clk 0:03:04.1]} 10... d6 {[%clk 0:03:09.5]} 11. d5
{[%clk 0:03:04]} 11... Nb8 {[%clk 0:03:11]} 12. dxe6 {[%clk 0:03:04.2]} 12...
fxe6 {[%clk 0:03:11.9]} 13. Nd4 {[%clk 0:03:03.7]} 13... c6 {[%clk 0:03:08.6]}
14. O-O {[%clk 0:03:01.8]} 14... Na6 {[%clk 0:03:01]} 15. a3 {[%clk 0:02:52.4]}
15... Nc7 {[%clk 0:02:48.9]} 16. e4 {[%clk 0:02:52]} 16... e5 {[%clk 0:02:48.1]}
17. Nc2 {[%clk 0:02:52.4]} 17... a5 {[%clk 0:02:44.4]} 18. b4 {[%clk 0:02:51.7]}
18... axb4 {[%clk 0:02:43.4]} 19. axb4 {[%clk 0:02:53.6]} 19... Be6 {[%clk
0:02:42.8]} 20. Ne3 {[%clk 0:02:51.6]} 20... Rad8 {[%clk 0:02:32.9]} 21. Rd3
{[%clk 0:02:49.4]} 21... b5 {[%clk 0:02:25.5]} 22. Qc2 {[%clk 0:02:39.3]} 22...
bxc4 {[%clk 0:02:20.6]} 23. Nxc4 {[%clk 0:02:41.2]} 23... Nb5 {[%clk 0:01:26.8]}
24. Na5 {[%clk 0:02:41.6]} 24... Bd7 {[%clk 0:00:52.7]} 25. Nxc6 {[%clk
0:02:37]} 25... Bxc6 {[%clk 0:00:53.3]} 26. Qxc6 {[%clk 0:02:38.8]} 26... Nd4
{[%clk 0:00:54.3]} 27. Qd5+ {[%clk 0:02:39.8]} 27... Qf7 {[%clk 0:00:47.1]} 28.
Rxd4 {[%clk 0:02:32]} 28... exd4 {[%clk 0:00:46.7]} 29. Qxd4 {[%clk 0:02:33.9]}
29... Qe7 {[%clk 0:00:43.7]} 30. f4 {[%clk 0:02:31.7]} 30... Kh8 {[%clk
0:00:43.6]} 31. Rb1 {[%clk 0:02:28.2]} 31... Rb8 {[%clk 0:00:32.7]} 32. b5
{[%clk 0:02:28.7]} 32... Qf6 {[%clk 0:00:30.1]} 33. Qxf6 {[%clk 0:02:28.2]}
33... Rxf6 {[%clk 0:00:22.4]} 34. Bh3 {[%clk 0:02:23]} 34... Rb6 {[%clk
0:00:17.8]} 35. Bd7 {[%clk 0:02:21.5]} 35... g6 {[%clk 0:00:16.4]} 36. Bc6
{[%clk 0:02:10]} 36... Rf7 {[%clk 0:00:16.6]} 37. Ra1 {[%clk 0:02:09.2]} 37...
Kg7 {[%clk 0:00:14.2]} 38. Ra6 {[%clk 0:02:06.3]} 38... Rb8 {[%clk 0:00:11.8]}
39. Kf2 {[%clk 0:01:57.9]} 39... g5 {[%clk 0:00:11.7]} 40. f5 {[%clk 0:01:57.6]}
40... Kf6 {[%clk 0:00:11.9]} 41. Ke3 {[%clk 0:01:53]} 41... Ke5 {[%clk
0:00:12.4]} 42. Ra2 {[%clk 0:01:52.1]} 42... Rc7 {[%clk 0:00:11.9]} 43. Rd2
{[%clk 0:01:52.9]} 43... Rd8 {[%clk 0:00:10.7]} 44. Rd5+ {[%clk 0:01:53.2]}
44... Kf6 {[%clk 0:00:11.6]} 45. e5+ {[%clk 0:01:52.3]} 45... Ke7 {[%clk
0:00:09.1]} 46. Ke4 {[%clk 0:01:48.6]} 46... dxe5 {[%clk 0:00:09.5]} 47. f6+
{[%clk 0:01:48.4]} 47... Kxf6 {[%clk 0:00:07.4]} 48. Rxd8 {[%clk 0:01:50.3]}
48... Ra7 {[%clk 0:00:08.4]} 49. Ra8 {[%clk 0:01:48.4]} 49... Rc7 {[%clk
0:00:07.7]} 50. Ra6 {[%clk 0:01:48.1]} 1-0

[Event "*** Titled Tuesday Blitz"]
[Site "Chess.com"]
[Date "2018.08.07"]
[Round "3"]
[White "Macron20hTF1"]
[Black "djano"]
[Result "1-0"]
[WhiteElo "2319"]
[BlackElo "2357"]
[TimeControl "180+2"]
[EndTime "13:34:06 PDT"]
[Termination "Macron20hTF1 won by resignation"]

1. e4 {[%clk 0:03:01.9]} 1... c5 {[%clk 0:03:00.5]} 2. Nf3 {[%clk 0:03:03.1]}
2... d6 {[%clk 0:03:01.8]} 3. d4 {[%clk 0:03:04.3]} 3... cxd4 {[%clk 0:03:03.7]}
4. Nxd4 {[%clk 0:03:05.7]} 4... Nf6 {[%clk 0:03:05.1]} 5. Nc3 {[%clk 0:03:07.2]}
5... a6 {[%clk 0:03:06.7]} 6. h3 {[%clk 0:03:08.7]} 6... e5 {[%clk 0:03:05.5]}
7. Nde2 {[%clk 0:03:08.5]} 7... Nbd7 {[%clk 0:03:04.2]} 8. g4 {[%clk 0:03:08]}
8... Nc5 {[%clk 0:03:05]} 9. Bg2 {[%clk 0:03:06]} 9... h6 {[%clk 0:03:06.1]} 10.
Be3 {[%clk 0:03:06.7]} 10... Be7 {[%clk 0:03:05.2]} 11. Qd2 {[%clk 0:03:03.2]}
11... O-O {[%clk 0:03:05.6]} 12. O-O-O {[%clk 0:02:59.8]} 12... Be6 {[%clk
0:03:05.2]} 13. f4 {[%clk 0:02:59.2]} 13... exf4 {[%clk 0:03:05.1]} 14. Nxf4
{[%clk 0:02:59.5]} 14... Rc8 {[%clk 0:03:00.1]} 15. Kb1 {[%clk 0:02:57.4]} 15...
Qa5 {[%clk 0:02:26.4]} 16. Ncd5 {[%clk 0:02:50.4]} 16... Qd8 {[%clk 0:02:26.6]}
17. Nxe7+ {[%clk 0:02:29.9]} 17... Qxe7 {[%clk 0:02:28.5]} 18. Bxc5 {[%clk
0:02:20.7]} 18... dxc5 {[%clk 0:02:28.1]} 19. e5 {[%clk 0:02:21.5]} 19... Ne8
{[%clk 0:02:20.5]} 20. Rhf1 {[%clk 0:02:11.1]} 20... c4 {[%clk 0:02:21]} 21. Nd5
{[%clk 0:02:00.5]} 21... Qc5 {[%clk 0:02:18.7]} 22. c3 {[%clk 0:01:56.6]} 22...
b5 {[%clk 0:02:18.4]} 23. Qf2 {[%clk 0:01:47.5]} 23... Bxd5 {[%clk 0:02:00.7]}
24. Bxd5 {[%clk 0:01:44]} 24... Qxf2 {[%clk 0:01:58.7]} 25. Rxf2 {[%clk
0:01:45.1]} 25... Nc7 {[%clk 0:02:00.3]} 26. Bb7 {[%clk 0:01:38.7]} 26... Rcd8
{[%clk 0:02:01.1]} 27. Rfd2 {[%clk 0:01:37.7]} 27... Rb8 {[%clk 0:01:59.1]} 28.
Bc6 {[%clk 0:01:33.6]} 28... b4 {[%clk 0:01:58.7]} 29. Kc2 {[%clk 0:01:32.4]}
29... bxc3 {[%clk 0:01:57.2]} 30. bxc3 {[%clk 0:01:33.7]} 30... Rb6 {[%clk
0:01:56.4]} 31. Be4 {[%clk 0:01:22]} 31... Re6 {[%clk 0:01:44.4]} 32. Re1 {[%clk
0:01:10.8]} 32... g6 {[%clk 0:01:36.4]} 33. Rd7 {[%clk 0:01:11.7]} 33... Rc8
{[%clk 0:01:21.7]} 34. Bb7 {[%clk 0:01:12]} 34... Rce8 {[%clk 0:01:12.6]} 35.
Rxc7 {[%clk 0:01:12.2]} 35... Rxe5 {[%clk 0:01:14.1]} 36. Rxe5 {[%clk
0:01:13.1]} 36... Rxe5 {[%clk 0:01:16]} 37. Rxc4 {[%clk 0:01:11.6]} 37... Re2+
{[%clk 0:01:17]} 38. Kb3 {[%clk 0:01:12.5]} 38... a5 {[%clk 0:01:18.4]} 39. a4
{[%clk 0:01:12.8]} 39... Re1 {[%clk 0:01:18.8]} 40. Rc5 {[%clk 0:01:12.3]} 40...
Rb1+ {[%clk 0:01:18.7]} 41. Kc4 {[%clk 0:01:13.1]} 41... Rxb7 {[%clk 0:01:20.6]}
42. Rxa5 {[%clk 0:01:14.3]} 42... Kf8 {[%clk 0:01:19.5]} 43. Re5 {[%clk
0:01:14.5]} 43... f6 {[%clk 0:01:16.8]} 44. Re6 {[%clk 0:01:13.3]} 44... Kf7
{[%clk 0:01:17.7]} 45. Rc6 {[%clk 0:01:14.9]} 45... f5 {[%clk 0:01:18.5]} 46.
gxf5 {[%clk 0:01:15.2]} 46... gxf5 {[%clk 0:01:20.4]} 47. Rxh6 {[%clk
0:01:16.4]} 47... Kg7 {[%clk 0:01:19.9]} 48. Rd6 {[%clk 0:01:14.3]} 48... f4
{[%clk 0:01:19.1]} 49. a5 {[%clk 0:01:15.7]} 49... f3 {[%clk 0:01:19.8]} 50. Rd2
{[%clk 0:01:05.3]} 50... Rb1 {[%clk 0:01:12.9]} 51. Rf2 {[%clk 0:01:04.8]} 51...
Ra1 {[%clk 0:01:13.3]} 52. Kb5 {[%clk 0:00:59.4]} 52... Rb1+ {[%clk 0:01:14.4]}
53. Kc5 {[%clk 0:01:00.6]} 53... Ra1 {[%clk 0:01:15.4]} 54. Kb6 {[%clk
0:01:01.7]} 54... Rb1+ {[%clk 0:01:16.8]} 55. Ka6 {[%clk 0:01:02.5]} 1-0

[Event "*** Titled Tuesday Blitz"]
[Site "Chess.com"]
[Date "2018.08.07"]
[Round "3"]
[White "Makalexa"]
[Black "silverback96"]
[Result "1-0"]
[WhiteElo "2077"]
[BlackElo "2027"]
[TimeControl "180+2"]
[EndTime "13:34:09 PDT"]
[Termination "Makalexa won by checkmate"]

1. e4 {[%clk 0:03:01.9]} 1... e6 {[%clk 0:02:56]} 2. d4 {[%clk 0:03:01.6]} 2...
d5 {[%clk 0:02:56.1]} 3. Nc3 {[%clk 0:03:02.4]} 3... Bb4 {[%clk 0:02:56.2]} 4.
e5 {[%clk 0:03:00.6]} 4... c5 {[%clk 0:02:56.8]} 5. a3 {[%clk 0:03:01.9]} 5...
Bxc3+ {[%clk 0:02:58]} 6. bxc3 {[%clk 0:03:03.1]} 6... Ne7 {[%clk 0:02:59.3]} 7.
Qg4 {[%clk 0:02:57.9]} 7... Qc7 {[%clk 0:03:00.2]} 8. Qxg7 {[%clk 0:02:53.2]}
8... Rg8 {[%clk 0:03:01.2]} 9. Qxh7 {[%clk 0:02:54]} 9... cxd4 {[%clk
0:03:00.5]} 10. Ne2 {[%clk 0:02:53]} 10... Nbc6 {[%clk 0:02:55.3]} 11. f4 {[%clk
0:02:53.9]} 11... dxc3 {[%clk 0:02:56.1]} 12. Nxc3 {[%clk 0:02:52.2]} 12... Nd4
{[%clk 0:02:34.7]} 13. Qd3 {[%clk 0:02:27.6]} 13... Nef5 {[%clk 0:02:34.8]} 14.
Bd2 {[%clk 0:01:51.6]} 14... Bd7 {[%clk 0:02:34.1]} 15. a4 {[%clk 0:01:49.3]}
15... Rc8 {[%clk 0:02:25.1]} 16. Rg1 {[%clk 0:01:31.9]} 16... a6 {[%clk
0:02:21.9]} 17. g4 {[%clk 0:01:27.1]} 17... Nh4 {[%clk 0:02:19.1]} 18. Rg3
{[%clk 0:01:22.7]} 18... Qc5 {[%clk 0:02:11.9]} 19. Kd1 {[%clk 0:01:05.2]} 19...
Nc6 {[%clk 0:01:45.6]} 20. Qh7 {[%clk 0:00:48.7]} 20... Rf8 {[%clk 0:01:32.7]}
21. Qxh4 {[%clk 0:00:46.4]} 21... Qf2 {[%clk 0:01:33.5]} 22. Be2 {[%clk
0:00:38.7]} 22... Qb6 {[%clk 0:01:12.9]} 23. Rb1 {[%clk 0:00:38]} 23... Qc7
{[%clk 0:01:09.6]} 24. Bc1 {[%clk 0:00:38]} 24... Na5 {[%clk 0:01:06.1]} 25. Ba3
{[%clk 0:00:38.4]} 25... Bxa4 {[%clk 0:00:56.7]} 26. Bd6 {[%clk 0:00:31.9]}
26... Qd7 {[%clk 0:00:43.9]} 27. Nxa4 {[%clk 0:00:32.4]} 27... Rxc2 {[%clk
0:00:29.9]} 28. Kxc2 {[%clk 0:00:28.8]} 28... Qxa4+ {[%clk 0:00:30.6]} 29. Rgb3
{[%clk 0:00:23.7]} 29... Qe4+ {[%clk 0:00:22]} 30. Kd1 {[%clk 0:00:24]} 30...
Qd4+ {[%clk 0:00:18.8]} 31. Ke1 {[%clk 0:00:23.9]} 31... Qg1+ {[%clk 0:00:18.3]}
32. Bf1 {[%clk 0:00:24.8]} 32... Kd7 {[%clk 0:00:16.6]} 33. Qe7+ {[%clk
0:00:24.2]} 33... Kc6 {[%clk 0:00:17.5]} 34. Rc1+ {[%clk 0:00:24.8]} 34... Nc4
{[%clk 0:00:18.4]} 35. Qc7# {[%clk 0:00:24.7]} 1-0

[Event "*** Titled Tuesday Blitz"]
[Site "Chess.com"]
[Date "2018.08.07"]
[Round "3"]
[White "MFBerna"]
[Black "Titus369"]
[Result "1/2-1/2"]
[WhiteElo "2285"]
[BlackElo "2205"]
[TimeControl "180+2"]
[EndTime "13:34:20 PDT"]
[Termination "Game drawn by repetition"]

1. e4 {[%clk 0:03:01.9]} 1... c5 {[%clk 0:02:59.5]} 2. Nf3 {[%clk 0:03:03.2]}
2... d6 {[%clk 0:03:00.8]} 3. d4 {[%clk 0:03:04.7]} 3... cxd4 {[%clk 0:03:02.7]}
4. Nxd4 {[%clk 0:03:06.1]} 4... Nf6 {[%clk 0:03:04.2]} 5. Nc3 {[%clk 0:03:07.6]}
5... a6 {[%clk 0:03:05.6]} 6. Be2 {[%clk 0:03:08.7]} 6... e6 {[%clk 0:03:06.4]}
7. O-O {[%clk 0:03:09.2]} 7... Nbd7 {[%clk 0:03:07.3]} 8. f4 {[%clk 0:03:09.8]}
8... b5 {[%clk 0:03:08.4]} 9. Bf3 {[%clk 0:03:09.2]} 9... Bb7 {[%clk 0:03:09.5]}
10. e5 {[%clk 0:03:00.9]} 10... Bxf3 {[%clk 0:03:09.9]} 11. Qxf3 {[%clk
0:03:02.8]} 11... dxe5 {[%clk 0:03:05.9]} 12. Nc6 {[%clk 0:03:03.5]} 12... Qb6+
{[%clk 0:02:58.8]} 13. Kh1 {[%clk 0:02:54.8]} 13... e4 {[%clk 0:02:51.5]} 14.
Nxe4 {[%clk 0:02:55.8]} 14... Nxe4 {[%clk 0:02:53.4]} 15. Qxe4 {[%clk
0:02:56.7]} 15... Nf6 {[%clk 0:02:43.3]} 16. Qf3 {[%clk 0:02:56.7]} 16... Rc8
{[%clk 0:02:39.7]} 17. Ne5 {[%clk 0:02:51.3]} 17... Bd6 {[%clk 0:02:22.7]} 18.
Be3 {[%clk 0:02:47.4]} 18... Qc7 {[%clk 0:02:19.7]} 19. Bd4 {[%clk 0:02:29.6]}
19... Qxc2 {[%clk 0:02:15.5]} 20. Qb7 {[%clk 0:02:11.8]} 20... O-O {[%clk
0:02:10.4]} 21. Qxa6 {[%clk 0:02:06.8]} 21... Bxe5 {[%clk 0:02:03.6]} 22. fxe5
{[%clk 0:02:02.7]} 22... Ng4 {[%clk 0:01:58]} 23. h3 {[%clk 0:01:31.8]} 23...
Qe4 {[%clk 0:01:39.8]} 24. Rad1 {[%clk 0:01:15.4]} 24... Rc2 {[%clk 0:01:37]}
25. Rf3 {[%clk 0:00:53]} 25... Qe2 {[%clk 0:01:19.3]} 26. Rg1 {[%clk 0:00:53.1]}
26... Nxe5 {[%clk 0:01:13.6]} 27. Rf2 {[%clk 0:00:32.8]} 27... Qe4 {[%clk
0:00:57.3]} 28. Rxc2 {[%clk 0:00:32.3]} 28... Qxd4 {[%clk 0:00:58]} 29. Rc8
{[%clk 0:00:28.7]} 29... Qd5 {[%clk 0:00:44]} 30. Rxf8+ {[%clk 0:00:25.2]} 30...
Kxf8 {[%clk 0:00:45.9]} 31. Qc8+ {[%clk 0:00:26]} 31... Ke7 {[%clk 0:00:46.1]}
32. Qc7+ {[%clk 0:00:26.8]} 32... Ke8 {[%clk 0:00:42.4]} 33. Qc8+ {[%clk
0:00:27.4]} 33... Ke7 {[%clk 0:00:43.5]} 34. Qc7+ {[%clk 0:00:28.3]} 34... Ke8
{[%clk 0:00:44.3]} 35. Rc1 {[%clk 0:00:28.4]} 35... Nc4 {[%clk 0:00:41.2]} 36.
b3 {[%clk 0:00:21.5]} 36... Nd6 {[%clk 0:00:41.4]} 37. Qb8+ {[%clk 0:00:18.4]}
37... Ke7 {[%clk 0:00:41.8]} 38. Rc7+ {[%clk 0:00:19.8]} 38... Kf6 {[%clk
0:00:42]} 39. Qd8+ {[%clk 0:00:19.7]} 39... Kg6 {[%clk 0:00:40.9]} 40. Rd7
{[%clk 0:00:17.6]} 40... Qe5 {[%clk 0:00:38.2]} 41. Rxd6 {[%clk 0:00:13.5]}
41... Qe1+ {[%clk 0:00:38.9]} 42. Kh2 {[%clk 0:00:14.8]} 42... Qe5+ {[%clk
0:00:40.8]} 43. Kg1 {[%clk 0:00:15.4]} 43... Qe1+ {[%clk 0:00:41.8]} 44. Kh2
{[%clk 0:00:16.9]} 44... Qe5+ {[%clk 0:00:43.2]} 45. Kg1 {[%clk 0:00:17.4]}
45... Qe1+ {[%clk 0:00:44.1]} 46. Kh2 {[%clk 0:00:19]} 46... Qe5+ {[%clk
0:00:45]} 1/2-1/2

[Event "*** Titled Tuesday Blitz"]
[Site "Chess.com"]
[Date "2018.08.07"]
[Round "3"]
[White "Divertissement"]
[Black "michaelk123"]
[Result "1-0"]
[WhiteElo "2568"]
[BlackElo "2379"]
[TimeControl "180+2"]
[EndTime "13:34:23 PDT"]
[Termination "Divertissement won on time"]

1. d4 {[%clk 0:03:01.9]} 1... Nf6 {[%clk 0:02:59]} 2. c4 {[%clk 0:03:02.5]} 2...
e6 {[%clk 0:02:59.7]} 3. Nc3 {[%clk 0:03:02.8]} 3... Bb4 {[%clk 0:02:59.3]} 4.
Qc2 {[%clk 0:03:03.6]} 4... O-O {[%clk 0:02:56.2]} 5. a3 {[%clk 0:03:05]} 5...
Bxc3+ {[%clk 0:02:57]} 6. Qxc3 {[%clk 0:03:06.4]} 6... b6 {[%clk 0:02:58.5]} 7.
f3 {[%clk 0:03:06.6]} 7... d5 {[%clk 0:02:56]} 8. Bg5 {[%clk 0:03:06]} 8... c5
{[%clk 0:02:15.2]} 9. cxd5 {[%clk 0:02:49.1]} 9... exd5 {[%clk 0:01:58.8]} 10.
Rd1 {[%clk 0:02:31.8]} 10... Nc6 {[%clk 0:01:53.9]} 11. dxc5 {[%clk 0:01:52.6]}
11... d4 {[%clk 0:01:51.6]} 12. Qc1 {[%clk 0:01:53.9]} 12... Bb7 {[%clk
0:01:12.8]} 13. e4 {[%clk 0:01:39.5]} 13... Re8 {[%clk 0:01:06.9]} 14. Bd3
{[%clk 0:01:19.5]} 14... Rc8 {[%clk 0:00:53]} 15. Qf4 {[%clk 0:01:13]} 15...
bxc5 {[%clk 0:00:40.5]} 16. Bxf6 {[%clk 0:01:11.3]} 16... Qxf6 {[%clk
0:00:40.7]} 17. Qxf6 {[%clk 0:01:11.9]} 17... gxf6 {[%clk 0:00:42.6]} 18. Ne2
{[%clk 0:01:12.1]} 18... Ne5 {[%clk 0:00:43]} 19. b3 {[%clk 0:01:00.9]} 19...
Rb8 {[%clk 0:00:32.5]} 20. Bb5 {[%clk 0:00:51]} 20... Re7 {[%clk 0:00:23.5]} 21.
Ba4 {[%clk 0:00:47.7]} 21... f5 {[%clk 0:00:22.5]} 22. exf5 {[%clk 0:00:30.2]}
22... Ba6 {[%clk 0:00:22.1]} 23. Kf2 {[%clk 0:00:21.5]} 23... Nd3+ {[%clk
0:00:21.9]} 24. Rxd3 {[%clk 0:00:19.6]} 24... Bxd3 {[%clk 0:00:22.9]} 25. Nf4
{[%clk 0:00:20.5]} 25... Bxf5 {[%clk 0:00:21]} 26. Rc1 {[%clk 0:00:22.1]} 26...
Rc8 {[%clk 0:00:19.3]} 27. g4 {[%clk 0:00:22.4]} 27... Be6 {[%clk 0:00:19.4]}
28. Nh5 {[%clk 0:00:20.3]} 28... Rb7 {[%clk 0:00:18.5]} 29. Nf6+ {[%clk
0:00:21.2]} 29... Kg7 {[%clk 0:00:18.9]} 30. Ne4 {[%clk 0:00:22.3]} 30... Bxb3
{[%clk 0:00:18.2]} 31. Nd6 {[%clk 0:00:23.9]} 31... Bxa4 {[%clk 0:00:16.5]} 32.
Nxc8 {[%clk 0:00:25.2]} 32... Rc7 {[%clk 0:00:13.8]} 33. Nd6 {[%clk 0:00:25.5]}
33... Bb3 {[%clk 0:00:13.1]} 34. Ne8+ {[%clk 0:00:26.6]} 34... Kf8 {[%clk
0:00:11.1]} 35. Nxc7 {[%clk 0:00:28.5]} 35... c4 {[%clk 0:00:12]} 36. Nb5 {[%clk
0:00:27.2]} 36... d3 {[%clk 0:00:09]} 37. Ke3 {[%clk 0:00:26.9]} 37... a6 {[%clk
0:00:09.5]} 38. Nd4 {[%clk 0:00:28]} 1-0

[Event "*** Titled Tuesday Blitz"]
[Site "Chess.com"]
[Date "2018.08.07"]
[Round "3"]
[White "Alliswell998"]
[Black "pKiLz5Rn9b"]
[Result "0-1"]
[WhiteElo "2424"]
[BlackElo "2709"]
[TimeControl "180+2"]
[EndTime "13:34:25 PDT"]
[Termination "pKiLz5Rn9b won by resignation"]

1. e4 {[%clk 0:03:01.9]} 1... c5 {[%clk 0:02:58.2]} 2. Nc3 {[%clk 0:03:02.5]}
2... d6 {[%clk 0:02:55.1]} 3. f4 {[%clk 0:03:03.9]} 3... Nc6 {[%clk 0:02:44.1]}
4. Nf3 {[%clk 0:03:05.2]} 4... g6 {[%clk 0:02:38.9]} 5. Bb5 {[%clk 0:03:04.6]}
5... Bd7 {[%clk 0:02:34.8]} 6. O-O {[%clk 0:03:04]} 6... Bg7 {[%clk 0:02:33.3]}
7. d3 {[%clk 0:03:04.2]} 7... e6 {[%clk 0:02:08.3]} 8. Bxc6 {[%clk 0:03:02.8]}
8... Bxc6 {[%clk 0:02:06.1]} 9. Qe1 {[%clk 0:03:04]} 9... Ne7 {[%clk 0:02:03.6]}
10. Qh4 {[%clk 0:03:03]} 10... b5 {[%clk 0:01:54.1]} 11. f5 {[%clk 0:02:55.3]}
11... gxf5 {[%clk 0:01:44.4]} 12. Bg5 {[%clk 0:02:42.6]} 12... b4 {[%clk
0:01:37.7]} 13. Ne2 {[%clk 0:02:25.8]} 13... fxe4 {[%clk 0:01:36.8]} 14. dxe4
{[%clk 0:02:19.1]} 14... h6 {[%clk 0:01:37.5]} 15. Bf6 {[%clk 0:02:17.8]} 15...
Bxf6 {[%clk 0:01:38.5]} 16. Qxf6 {[%clk 0:02:19.4]} 16... Ng6 {[%clk 0:01:40]}
17. Qg7 {[%clk 0:02:11.7]} 17... Qe7 {[%clk 0:01:26]} 18. Nh4 {[%clk 0:02:00.4]}
18... Qxh4 {[%clk 0:01:08.2]} 19. Qxf7+ {[%clk 0:01:40.3]} 19... Kd8 {[%clk
0:01:08.6]} 20. Rad1 {[%clk 0:01:33.5]} 20... Qxe4 {[%clk 0:01:02]} 21. Rxd6+
{[%clk 0:01:33.7]} 21... Kc8 {[%clk 0:01:02.7]} 22. Rf2 {[%clk 0:01:21.9]} 22...
Rf8 {[%clk 0:00:50.1]} 23. Rxc6+ {[%clk 0:00:55.8]} 23... Qxc6 {[%clk
0:00:48.9]} 24. Qxg6 {[%clk 0:00:57.2]} 24... Rxf2 {[%clk 0:00:48.4]} 25. Kxf2
{[%clk 0:00:58.8]} 25... Kb7 {[%clk 0:00:45]} 26. Qf7+ {[%clk 0:00:57.5]} 26...
Kb6 {[%clk 0:00:41]} 27. Nf4 {[%clk 0:00:53.8]} 27... Re8 {[%clk 0:00:33.9]} 28.
Nd3 {[%clk 0:00:46.2]} 28... e5 {[%clk 0:00:31.4]} 29. Kg1 {[%clk 0:00:38.1]}
29... Qe6 {[%clk 0:00:20.5]} 30. Qf2 {[%clk 0:00:33.9]} 30... Qd5 {[%clk
0:00:18.6]} 31. Kh1 {[%clk 0:00:27.9]} 31... e4 {[%clk 0:00:17.8]} 32. Ne1
{[%clk 0:00:22.7]} 32... e3 {[%clk 0:00:18]} 33. Qf6+ {[%clk 0:00:22.8]} 33...
Re6 {[%clk 0:00:18.4]} 34. Qf8 {[%clk 0:00:24.2]} 34... e2 {[%clk 0:00:18.7]}
35. h3 {[%clk 0:00:24.6]} 35... Qd6 {[%clk 0:00:11.3]} 36. a4 {[%clk 0:00:15.9]}
36... Qxf8 {[%clk 0:00:11]} 37. a5+ {[%clk 0:00:14.9]} 37... Kxa5 {[%clk
0:00:11.8]} 38. Nf3 {[%clk 0:00:16.5]} 38... e1=Q+ {[%clk 0:00:11.7]} 39. Kh2
{[%clk 0:00:17.7]} 39... Qf4+ {[%clk 0:00:12.3]} 40. g3 {[%clk 0:00:18.7]} 0-1

[Event "*** Titled Tuesday Blitz"]
[Site "Chess.com"]
[Date "2018.08.07"]
[Round "3"]
[White "HansCoolNiemann"]
[Black "Koksik_13"]
[Result "0-1"]
[WhiteElo "2470"]
[BlackElo "2611"]
[TimeControl "180+2"]
[EndTime "13:34:25 PDT"]
[Termination "Koksik_13 won by checkmate"]

1. d4 {[%clk 0:03:01.1]} 1... e6 {[%clk 0:02:56.9]} 2. e4 {[%clk 0:02:59.7]}
2... d5 {[%clk 0:02:56.1]} 3. Nc3 {[%clk 0:03:00.5]} 3... Bb4 {[%clk 0:02:56.6]}
4. e5 {[%clk 0:03:01.6]} 4... c5 {[%clk 0:02:57.7]} 5. a3 {[%clk 0:03:03.1]}
5... Bxc3+ {[%clk 0:02:58.8]} 6. bxc3 {[%clk 0:03:04.2]} 6... Ne7 {[%clk
0:03:00.4]} 7. Nf3 {[%clk 0:03:04.3]} 7... Qc7 {[%clk 0:03:00.9]} 8. Bd3 {[%clk
0:03:00.3]} 8... b6 {[%clk 0:03:01.8]} 9. a4 {[%clk 0:03:00]} 9... Ba6 {[%clk
0:03:02.5]} 10. Bb5+ {[%clk 0:03:01.4]} 10... Bxb5 {[%clk 0:03:03.6]} 11. axb5
{[%clk 0:03:03.3]} 11... a6 {[%clk 0:03:04.2]} 12. bxa6 {[%clk 0:03:04.5]} 12...
Rxa6 {[%clk 0:03:04.4]} 13. Rxa6 {[%clk 0:03:05.4]} 13... Nxa6 {[%clk
0:02:59.8]} 14. h4 {[%clk 0:03:07.3]} 14... h6 {[%clk 0:02:56.7]} 15. h5 {[%clk
0:03:08.2]} 15... O-O {[%clk 0:02:57.5]} 16. O-O {[%clk 0:03:08.9]} 16... Rc8
{[%clk 0:02:57.8]} 17. Qd3 {[%clk 0:03:10]} 17... Nb8 {[%clk 0:02:57.7]} 18. Qb5
{[%clk 0:03:03.5]} 18... cxd4 {[%clk 0:02:55.8]} 19. cxd4 {[%clk 0:03:05.4]}
19... Nbc6 {[%clk 0:02:54.8]} 20. Ba3 {[%clk 0:03:03.2]} 20... Nf5 {[%clk
0:02:53]} 21. c3 {[%clk 0:03:02.6]} 21... Na5 {[%clk 0:02:53.2]} 22. Bb4 {[%clk
0:03:03.2]} 22... Nc4 {[%clk 0:02:52.3]} 23. g4 {[%clk 0:03:02.7]} 23... Ne7
{[%clk 0:02:52.6]} 24. Ra1 {[%clk 0:03:03.2]} 24... Nc6 {[%clk 0:02:36.6]} 25.
Bd6 {[%clk 0:02:54.5]} 25... Qb7 {[%clk 0:02:33.7]} 26. Rb1 {[%clk 0:02:54.3]}
26... Ra8 {[%clk 0:02:31.7]} 27. Bc5 {[%clk 0:02:47.7]} 27... Ra2 {[%clk
0:02:19.8]} 28. Bxb6 {[%clk 0:02:45.4]} 28... Na3 {[%clk 0:02:20.2]} 29. Qa4
{[%clk 0:02:29.5]} 29... Nxb1 {[%clk 0:02:19.5]} 30. Qxa2 {[%clk 0:02:30.9]}
30... Qxb6 {[%clk 0:02:19.7]} 31. Qa8+ {[%clk 0:02:31.3]} 31... Nb8 {[%clk
0:02:18.5]} 32. g5 {[%clk 0:02:32.5]} 32... Nxc3 {[%clk 0:02:11.3]} 33. g6
{[%clk 0:02:32.8]} 33... fxg6 {[%clk 0:02:11.7]} 34. hxg6 {[%clk 0:02:34.7]}
34... Nb5 {[%clk 0:02:03.8]} 35. Qa4 {[%clk 0:02:33.2]} 35... Nc7 {[%clk
0:01:59.1]} 36. Qa3 {[%clk 0:02:30.2]} 36... Qb1+ {[%clk 0:01:58.5]} 37. Kh2
{[%clk 0:02:30.3]} 37... Qxg6 {[%clk 0:01:59.2]} 38. Qe7 {[%clk 0:02:27.5]}
38... Nba6 {[%clk 0:01:54]} 39. Nh4 {[%clk 0:02:22.8]} 39... Qe4 {[%clk
0:01:50.4]} 40. f3 {[%clk 0:02:23]} 40... Qc2+ {[%clk 0:01:45.8]} 41. Kh3 {[%clk
0:02:24.1]} 41... Kh7 {[%clk 0:01:46.7]} 42. f4 {[%clk 0:02:17.5]} 42... Qd3+
{[%clk 0:01:31.4]} 43. Kg4 {[%clk 0:02:17.5]} 43... Qxd4 {[%clk 0:01:30.7]} 44.
Qf7 {[%clk 0:02:14.8]} 44... Qg1+ {[%clk 0:01:30.5]} 45. Kh3 {[%clk 0:02:13.1]}
45... d4 {[%clk 0:01:25.2]} 46. f5 {[%clk 0:02:14.4]} 46... d3 {[%clk
0:01:21.9]} 47. Ng6 {[%clk 0:02:14.6]} 47... Qe1 {[%clk 0:01:18.3]} 48. Nf8+
{[%clk 0:02:08.6]} 48... Kh8 {[%clk 0:01:19.1]} 49. f6 {[%clk 0:02:01]} 49...
Qf1+ {[%clk 0:01:06.9]} 50. Kg3 {[%clk 0:01:57.7]} 50... Qg1+ {[%clk 0:01:02.6]}
51. Kf3 {[%clk 0:01:53]} 51... Qf1+ {[%clk 0:01:00.5]} 52. Ke3 {[%clk 0:01:16]}
52... Nd5+ {[%clk 0:00:59.8]} 53. Kd4 {[%clk 0:01:13.1]} 53... Qf2+ {[%clk
0:00:57.1]} 54. Kc4 {[%clk 0:01:09]} 54... Qc5+ {[%clk 0:00:56.9]} 55. Kxd3
{[%clk 0:01:03.6]} 55... Qe3+ {[%clk 0:00:57.4]} 56. Kc4 {[%clk 0:01:03]} 56...
Qc3+ {[%clk 0:00:57.7]} 57. Kb5 {[%clk 0:01:04.2]} 57... Qc5+ {[%clk 0:00:58.4]}
58. Kxa6 {[%clk 0:01:05.3]} 58... Qb6# {[%clk 0:00:59.1]} 0-1